bitfinex-derivatives/quotes_BTCF0:USTF0_20250130
["timestamp","ask_amount","ask_price","bid_price","bid_amount"]
[1738242600320,0.1904836,105090.0,105080.0,0.68877012]
[1738242601318,0.1904836,105090.0,105080.0,0.69812301]
[1738242604217,0.1904836,105090.0,105080.0,0.49841112]
[1738242604519,0.25899472,105090.0,105080.0,0.49841112]
[1738242604717,0.25899472,105090.0,105080.0,0.3981]
[1738242604918,0.32169472,105090.0,105080.0,0.3648]
[1738242605118,0.32169472,105090.0,105080.0,0.43331112]
[1738242605315,0.32169472,105090.0,105080.0,0.3648]
[1738242605823,0.2531836,105090.0,105080.0,0.43331112]
[1738242606527,0.1904836,105090.0,105080.0,0.49881112]
[1738242614021,0.1904836,105090.0,105080.0,0.4303]
[1738242615221,0.1904836,105090.0,105080.0,0.49881112]
[1738242616120,0.1904836,105090.0,105080.0,0.4303]
[1738242617229,0.1904836,105090.0,105080.0,0.3976]
[1738242617425,0.2204836,105090.0,105080.0,0.3976]
[1738242617827,0.44832721,105090.0,105080.0,0.3976]
[1738242626338,0.44832721,105090.0,105080.0,0.65647012]
[1738242627831,0.44832721,105090.0,105080.0,0.68797012]
[1738242629131,0.44832721,105090.0,105080.0,0.49761112]
[1738242630428,0.2204836,105090.0,105080.0,0.49761112]
[1738242633837,0.2204836,105090.0,105080.0,0.68797012]
[1738242634230,0.1904836,105090.0,105080.0,0.75648124]
[1738242635033,0.1904836,105090.0,105080.0,0.68797012]
[1738242635732,0.1904836,105090.0,105080.0,0.75648124]
[1738242641043,0.39020515,105090.0,105080.0,0.75648124]
[1738242644341,0.1904836,105090.0,105080.0,0.75648124]
[1738242646355,0.1904836,105090.0,105080.0,0.56612224]
[1738242646532,0.1904836,105090.0,105080.0,0.75648124]
[1738242647936,0.1904836,105090.0,105080.0,0.68797012]
[1738242648135,0.1904836,105090.0,105080.0,0.49761112]
[1738242648337,0.1904836,105090.0,105080.0,0.52285112]
[1738242648630,0.25899472,105090.0,105080.0,0.4291]
[1738242648841,0.25899472,105090.0,105080.0,0.3648]
[1738242649031,0.31989472,105090.0,105080.0,0.3648]
[1738242649231,0.31989472,105090.0,105080.0,0.43331112]
[1738242649433,0.2513836,105090.0,105080.0,0.43331112]
[1738242653748,0.45092185,105090.0,105080.0,0.43331112]
[1738242655650,0.39002185,105090.0,105080.0,0.69218124]
[1738242655855,0.39002185,105090.0,105080.0,0.75498124]
[1738242656039,0.39002185,105090.0,105080.0,0.68647012]
[1738242661452,0.45853297,105090.0,105080.0,0.46501112]
[1738242661646,0.39002185,105090.0,105080.0,0.46501112]
[1738242665056,0.42212185,105090.0,105080.0,0.46501112]
[1738242666259,0.42212185,105090.0,105080.0,0.65537012]
[1738242670855,0.42212185,105090.0,105060.0,0.19674472]
[1738242670856,0.66109197,105090.0,105060.0,0.3609426]
[1738242671062,0.66109197,105090.0,105060.0,0.0001426]
[1738242671063,0.25888812,105070.0,105060.0,0.0001426]
[1738242671358,0.68819924,105070.0,105060.0,0.0001426]
[1738242671549,0.68819924,105070.0,105050.0,0.39984548]
[1738242671550,0.190395,105060.0,105050.0,0.39984548]
[1738242671750,0.32741724,105060.0,105050.0,0.39984548]
[1738242672458,0.25890612,105060.0,105050.0,0.39984548]
[1738242672659,0.29090612,105060.0,105050.0,0.39984548]
[1738242672960,0.29090612,105060.0,105050.0,0.41084548]
[1738242673156,0.29090612,105060.0,105050.0,0.4793566]
[1738242674662,0.222395,105060.0,105050.0,0.4793566]
[1738242675357,0.29090612,105060.0,105050.0,0.4793566]
[1738242675555,0.222395,105060.0,105050.0,0.07951112]
[1738242676161,0.29090612,105060.0,105050.0,0.07951112]
[1738242676660,0.222395,105060.0,105050.0,0.07951112]
[1738242678165,0.30047096,105060.0,105050.0,0.07951112]
[1738242679263,0.19995984,105060.0,105050.0,0.07951112]
[1738242679460,0.26847096,105060.0,105050.0,0.0422]
[1738242681154,0.26847096,105060.0,105050.0,0.11071112]
[1738242681462,0.26847096,105060.0,105050.0,0.0422]
[1738242684265,0.26847096,105060.0,105050.0,0.11071112]
[1738242684559,0.26847096,105060.0,105050.0,0.0422]
[1738242686668,0.26847096,105060.0,105050.0,0.403]
[1738242687665,0.26847096,105060.0,105050.0,0.0422]
[1738242687969,0.26847096,105060.0,105050.0,0.403]
[1738242688658,0.26847096,105060.0,105050.0,0.593413]
[1738242689771,0.190395,105060.0,105050.0,0.69422412]
[1738242690470,0.190395,105060.0,105050.0,0.71942412]
[1738242692270,0.190395,105060.0,105050.0,0.69422412]
[1738242696272,0.190395,105060.0,105050.0,0.70385291]
[1738242697978,0.38903154,105070.0,105060.0,0.190394]
[1738242698177,0.38903154,105070.0,105060.0,0.61970512]
[1738242698383,0.38903154,105070.0,105060.0,0.65090512]
[1738242699271,0.38903154,105070.0,105060.0,0.65790512]
[1738242699770,0.38903154,105070.0,105060.0,0.72641624]
[1738242699969,0.1905286,105070.0,105060.0,0.72641624]
[1738242701597,0.0001426,105070.0,105060.0,0.75157624]
[1738242705197,0.0001426,105070.0,105060.0,0.82008736]
[1738242707995,0.19850294,105090.0,105060.0,0.94457091]
[1738242708184,0.19850294,105090.0,105080.0,1.04898024]
[1738242708389,0.19850294,105090.0,105080.0,1.07418024]
[1738242708591,0.19850294,105090.0,105080.0,1.10508024]
[1738242708898,0.19850294,105090.0,105080.0,1.07988024]
[1738242709100,0.19850294,105090.0,105080.0,1.10508024]
[1738242710702,0.48660896,105100.0,105090.0,0.19034]
[1738242710703,0.17204679,105100.0,105090.0,0.19034]
[1738242711000,0.17204679,105100.0,105090.0,0.68545112]
[1738242712104,0.17504679,105100.0,105090.0,0.68545112]
[1738242712500,0.18104679,105100.0,105090.0,0.68645112]
[1738242714005,0.01057091,105100.0,105090.0,0.68645112]
[1738242714591,0.0091426,105100.0,105090.0,0.68645112]
[1738242716712,0.0091426,105100.0,105090.0,0.71157112]
[1738242719601,0.1994646,105100.0,105090.0,0.71157112]
[1738242725113,0.1994646,105100.0,105090.0,0.71149112]
[1738242726208,0.1994646,105100.0,105090.0,0.68645112]
[1738242726413,0.1994646,105100.0,105090.0,0.64577112]
[1738242727415,0.36994048,105100.0,105090.0,0.64577112]
[1738242730408,0.36994048,105100.0,105090.0,0.62065112]
[1738242730614,0.1994646,105100.0,105090.0,0.62065112]
[1738242743424,0.1994646,105100.0,105090.0,0.55214]
[1738242744222,0.1994646,105100.0,105090.0,0.62065112]
[1738242744724,0.1994646,105100.0,105090.0,0.55214]
[1738242747424,0.1994646,105100.0,105090.0,0.62065112]
[1738242753924,0.0091426,105100.0,105090.0,0.68575112]
[1738242754121,0.0091426,105100.0,105090.0,0.71675112]
[1738242755537,0.1994646,105100.0,105090.0,0.71675112]
[1738242758225,0.0091426,105100.0,105090.0,0.71675112]
[1738242763224,0.18033254,105100.0,105090.0,0.71675112]
[1738242766129,0.0091426,105100.0,105090.0,0.71675112]
[1738242767537,0.0091426,105100.0,105090.0,0.78526224]
[1738242767932,0.0091426,105100.0,105090.0,0.71675112]
[1738242768133,0.0091426,105100.0,105090.0,0.78526224]
[1738242769935,0.0061426,105100.0,105090.0,0.78426224]
[1738242770235,0.19864554,105100.0,105090.0,0.78426224]
[1738242774138,0.0001426,105100.0,105090.0,0.78426224]
[1738242777441,0.1710832,105110.0,105090.0,0.59392224]
[1738242777647,0.1710832,105110.0,105100.0,0.71314424]
[1738242777947,0.13085567,105110.0,105100.0,0.78165536]
[1738242778629,0.13585567,105110.0,105100.0,0.68814424]
[1738242778830,0.13785567,105110.0,105100.0,0.68814424]
[1738242779142,0.13285567,105110.0,105100.0,0.71314424]
[1738242779328,0.13685567,105110.0,105100.0,0.71414424]
[1738242779542,0.13985567,105110.0,105100.0,0.62063312]
[1738242779741,0.33015967,105110.0,105100.0,0.64563312]
[1738242780438,0.13985567,105110.0,105100.0,0.62063312]
[1738242780645,0.36335967,105110.0,105100.0,0.64567312]
[1738242780838,0.36335967,105110.0,105100.0,0.71418424]
[1738242781743,0.232504,105110.0,105100.0,0.71418424]
[1738242782444,0.232504,105110.0,105100.0,0.72370528]
[1738242783243,0.0422,105110.0,105100.0,0.72370528]
[1738242788443,0.009,105110.0,105100.0,0.72370528]
[1738242789651,0.009,105110.0,105100.0,0.7922164]
[1738242789849,0.003,105110.0,105100.0,0.7912164]
[1738242790038,0.008,105110.0,105100.0,0.7912164]
[1738242790943,0.005,105110.0,105100.0,0.7912164]
[1738242791143,0.007,105110.0,105100.0,0.7912164]
[1738242791552,0.002,105110.0,105100.0,0.7912164]
[1738242791742,0.25840337,105120.0,105100.0,0.6008944]
[1738242791943,0.25840337,105120.0,105110.0,0.75332624]
[1738242792246,0.25840337,105120.0,105110.0,0.82183736]
[1738242792247,0.0001426,105120.0,105110.0,0.82183736]
[1738242792448,0.19850294,105140.0,105130.0,0.190268]
[1738242792744,0.19850294,105140.0,105130.0,1.00553912]
[1738242794448,0.19850294,105140.0,105130.0,1.03763912]
[1738242794636,0.21150294,105140.0,105130.0,1.03963912]
[1738242795350,0.013,105140.0,105130.0,1.03963912]
[1738242797955,0.013,105140.0,105130.0,1.00753912]
[1738242798852,0.08151112,105140.0,105130.0,0.98237912]
[1738242799054,0.27176112,105140.0,105130.0,1.00749912]
[1738242799245,0.27176112,105140.0,105130.0,0.98237912]
[1738242799755,0.20325,105140.0,105130.0,0.98237912]
[1738242801053,0.20325,105140.0,105130.0,0.99198265]
[1738242804053,0.20325,105140.0,105130.0,0.98237912]
[1738242804351,0.27176112,105140.0,105130.0,0.7236]
[1738242804557,0.27176112,105140.0,105130.0,0.913868]
[1738242804851,0.20325,105140.0,105130.0,0.98237912]
[1738242806660,0.26300783,105140.0,105130.0,0.98237912]
[1738242811065,0.25600783,105140.0,105130.0,0.98137912]
[1738242811252,0.26200783,105140.0,105130.0,0.98237912]
[1738242814861,0.20225,105140.0,105130.0,0.98237912]
[1738242822573,0.26173345,105140.0,105130.0,0.98237912]
[1738242829287,0.26173345,105140.0,105130.0,1.07897912]
[1738242832082,0.26173345,105140.0,105130.0,1.04687912]
[1738242833081,0.4305032,105140.0,105130.0,1.04687912]
[1738242839296,0.4305032,105140.0,105130.0,0.978368]
[1738242839594,0.4305032,105140.0,105130.0,1.04687912]
[1738242840500,0.4305032,105140.0,105130.0,0.68607912]
[1738242840700,0.45903485,105140.0,105130.0,0.68607912]
[1738242840903,0.45903485,105140.0,105130.0,0.71747912]
[1738242841194,0.45903485,105140.0,105130.0,1.07827912]
[1738242848706,0.40204914,105140.0,105130.0,1.07827912]
[1738242850105,0.39904914,105140.0,105130.0,1.07727912]
[1738242851203,0.20279914,105140.0,105130.0,1.14479024]
[1738242851402,0.20879914,105140.0,105130.0,1.17083024]
[1738242852005,0.20879914,105140.0,105130.0,1.10231912]
[1738242854106,0.20879914,105140.0,105130.0,1.17083024]
[1738242855810,0.20879914,105140.0,105130.0,1.18570084]
[1738242856202,0.20879914,105140.0,105130.0,1.17083024]
[1738242856603,0.20879914,105140.0,105130.0,1.18570102]
[1738242856808,0.20879914,105140.0,105130.0,1.17083024]
[1738242857196,0.23734187,105140.0,105130.0,1.10231912]
[1738242860518,0.009,105140.0,105130.0,1.10231912]
[1738242861214,0.009,105140.0,105130.0,1.07727912]
[1738242861403,0.009,105140.0,105130.0,1.10243912]
[1738242864010,0.009,105140.0,105130.0,1.07727912]
[1738242864214,0.19925,105140.0,105130.0,1.07107912]
[1738242866517,0.19925,105140.0,105130.0,1.04587912]
[1738242866713,0.19925,105140.0,105130.0,0.43031112]
[1738242868817,0.19925,105140.0,105130.0,0.62057912]
[1738242869014,0.19925,105140.0,105130.0,0.65237912]
[1738242871216,0.190268,105130.0,105120.0,0.3609426]
[1738242871517,0.253468,105130.0,105120.0,0.61974072]
[1738242871917,0.53343712,105140.0,105120.0,0.49796484]
[1738242871918,0.009,105140.0,105120.0,0.49796484]
[1738242872106,0.009,105140.0,105130.0,0.68809024]
[1738242872308,0.006,105140.0,105130.0,0.71959024]
[1738242872513,0.42794004,105150.0,105140.0,0.19025]
[1738242872708,0.42794004,105150.0,105140.0,0.68599988]
[1738242873822,0.16410526,105150.0,105140.0,0.8591089]
[1738242874022,0.23827398,105160.0,105150.0,0.190232]
[1738242874219,0.23827398,105160.0,105150.0,0.8294909]
[1738242874631,0.23827398,105160.0,105150.0,0.8681309]
[1738242874825,0.59792334,105180.0,105150.0,0.8681309]
[1738242874826,0.70032417,105180.0,105150.0,0.8681309]
[1738242875021,0.70032417,105180.0,105170.0,0.3608]
[1738242875421,0.80457405,105180.0,105170.0,0.3608]
[1738242875731,0.90882393,105180.0,105170.0,0.3608]
[1738242876830,1.09900693,105180.0,105160.0,0.0001426]
[1738242877032,0.16684988,105170.0,105160.0,0.0001426]
[1738242877227,0.35704588,105170.0,105160.0,0.0001426]
[1738242878233,0.16684988,105170.0,105160.0,0.3609426]
[1738242878640,0.16984988,105170.0,105160.0,0.3609426]
[1738242879835,0.17684988,105170.0,105160.0,0.3619426]
[1738242887144,0.17684988,105170.0,105160.0,0.5521566]
[1738242891039,0.36704588,105170.0,105160.0,0.0011426]
[1738242892737,0.72784588,105170.0,105160.0,0.0011426]
[1738242894243,0.53764988,105170.0,105140.0,0.3914]
[1738242894443,0.29448188,105150.0,105140.0,0.3608]
[1738242894850,0.32598188,105150.0,105140.0,0.55105]
[1738242895548,0.35718188,105150.0,105140.0,0.55105]
[1738242896753,0.35718188,105150.0,105140.0,0.55305]
[1738242897247,0.29461148,105160.0,105150.0,0.190232]
[1738242899352,0.29561148,105160.0,105150.0,0.190232]
[1738242900353,0.0011426,105160.0,105150.0,0.65528188]
[1738242900652,0.0011426,105160.0,105150.0,0.551032]
[1738242902251,0.0011426,105160.0,105150.0,0.65528188]
[1738242903552,0.0011426,105160.0,105150.0,0.67014943]
[1738242903754,0.0011426,105160.0,105150.0,0.551032]
[1738242904255,0.0011426,105160.0,105150.0,0.65528188]
[1738242904442,0.0011426,105160.0,105150.0,0.75953176]
[1738242904647,0.0011426,105160.0,105150.0,0.67014913]
[1738242904947,0.10424988,105180.0,105160.0,0.190198]
[1738242905147,0.10424988,105180.0,105170.0,0.3608]
[1738242905951,0.10424988,105180.0,105170.0,0.550996]
[1738242906153,0.39955175,105190.0,105170.0,0.550996]
[1738242906355,0.39955175,105190.0,105180.0,0.3608]
[1738242907661,0.190178,105180.0,105170.0,0.3618]
[1738242907955,0.75947776,105180.0,105170.0,0.001]
[1738242908154,0.190196,105170.0,105160.0,0.0001426]
[1738242908359,0.38814588,105170.0,105160.0,0.0001426]
[1738242909543,0.60210988,105170.0,105150.0,0.190229]
[1738242909743,0.29446388,105160.0,105150.0,0.190229]
[1738242910349,0.29446388,105160.0,105140.0,0.613247]
[1738242910558,0.10424988,105150.0,105140.0,0.613247]
[1738242911052,0.190214,105160.0,105140.0,0.6133896]
[1738242911053,0.29460648,105160.0,105140.0,0.6133896]
[1738242911850,0.29460648,105160.0,105140.0,0.6143896]
[1738242912059,0.29560648,105160.0,105140.0,0.6143896]
[1738242912357,0.29460648,105160.0,105150.0,0.190232]
[1738242913757,0.29560648,105160.0,105150.0,0.190232]
[1738242914751,0.29560648,105160.0,105150.0,0.551032]
[1738242915253,0.10539248,105160.0,105150.0,0.551032]
[1738242915457,0.10539248,105160.0,105150.0,0.65528188]
[1738242915458,0.0011426,105160.0,105150.0,0.65528188]
[1738242915657,0.0011426,105160.0,105150.0,0.581832]
[1738242915962,0.0011426,105160.0,105150.0,0.68608188]
[1738242916254,0.0011426,105160.0,105150.0,0.581832]
[1738242917055,0.0011426,105160.0,105150.0,0.68608188]
[1738242923557,0.0011426,105160.0,105150.0,0.69546685]
[1738242927368,0.285863,105190.0,105150.0,0.60948473]
[1738242927671,0.285863,105190.0,105180.0,0.3608]
[1738242927870,0.0957,105190.0,105180.0,0.65522788]
[1738242928062,0.0638,105190.0,105180.0,0.65522788]
[1738242928660,0.0718,105190.0,105180.0,0.65522788]
[1738242929176,0.0758,105190.0,105180.0,0.65522788]
[1738242929666,0.0758,105190.0,105180.0,0.65622788]
[1738242929855,0.0436,105190.0,105180.0,0.65622788]
[1738242930061,0.012,105190.0,105180.0,0.68852788]
[1738242930358,0.014,105190.0,105180.0,0.68952788]
[1738242930671,0.014,105190.0,105180.0,0.70439104]
[1738242930866,0.0117148,105190.0,105180.0,0.80864092]
[1738242931061,8e-07,105190.0,105180.0,0.80864092]
[1738242931369,0.10230141,105260.0,105250.0,0.190052]
[1738242931668,0.10230141,105260.0,105250.0,1.01590188]
[1738242932056,0.45479746,105280.0,105250.0,0.82584988]
[1738242932262,0.45479746,105280.0,105270.0,1.01586488]
[1738242933167,0.55904734,105280.0,105270.0,0.3608]
[1738242933370,0.91984734,105280.0,105260.0,0.0001426]
[1738242933568,0.29426488,105270.0,105260.0,0.0001426]
[1738242934169,0.29426488,105270.0,105260.0,0.3609426]
[1738242935670,0.29426488,105270.0,105260.0,0.3619426]
[1738242936074,0.29826488,105270.0,105260.0,0.3619426]
[1738242936375,0.194015,105270.0,105260.0,0.46619248]
[1738242936579,0.004,105270.0,105260.0,0.65622648]
[1738242936974,0.004,105270.0,105260.0,0.5519766]
[1738242937578,0.724,105270.0,105260.0,0.5519766]
[1738242937878,0.724,105270.0,105260.0,0.65597185]
[1738242938869,0.004,105270.0,105260.0,0.68867185]
[1738242940072,0.194016,105270.0,105260.0,0.39438797]
[1738242940978,0.194016,105270.0,105260.0,0.49863785]
[1738242941679,0.194016,105270.0,105260.0,0.39438797]
[1738242942169,0.194016,105270.0,105260.0,0.49863785]
[1738242943076,0.194016,105270.0,105260.0,0.39438797]
[1738242944272,0.194016,105270.0,105260.0,0.36168797]
[1738242944479,0.29826588,105270.0,105260.0,0.36168797]
[1738242944669,0.29826588,105270.0,105260.0,0.001]
[1738242945282,0.69086588,105270.0,105260.0,0.001]
[1738242946580,0.586616,105270.0,105260.0,0.001]
[1738242946787,0.554816,105270.0,105260.0,0.001]
[1738242946971,0.194016,105270.0,105260.0,0.001]
[1738242949287,0.194016,105270.0,105260.0,0.191034]
[1738242949477,0.191016,105270.0,105260.0,0.191034]
[1738242949678,0.191016,105270.0,105260.0,0.190034]
[1738242950074,0.001,105270.0,105250.0,0.3609426]
[1738242950376,0.190034,105260.0,105250.0,0.65523748]
[1738242951277,0.190019,105270.0,105260.0,0.190023]
[1738242951480,0.190019,105270.0,105260.0,0.71737288]
[1738242951777,0.190019,105270.0,105260.0,0.613123]
[1738242952169,0.190019,105270.0,105260.0,0.550823]
[1738242952370,0.190034,105260.0,105250.0,0.5539906]
[1738242952582,0.190034,105260.0,105250.0,0.5509906]
[1738242953785,0.0001426,105280.0,105250.0,0.56944236]
[1738242954080,0.1901406,105280.0,105270.0,0.82584988]
[1738242954270,0.0001426,105280.0,105270.0,1.04906588]
[1738242954474,0.0001426,105280.0,105270.0,1.06391773]
[1738242955185,0.0001426,105280.0,105270.0,1.06491773]
[1738242955587,0.0021426,105280.0,105270.0,1.06491773]
[1738242955786,0.0021426,105280.0,105270.0,1.07465016]
[1738242955985,0.0021426,105280.0,105270.0,1.07464925]
[1738242956181,0.0021426,105280.0,105270.0,1.16291021]
[1738242956483,0.289963,105300.0,105270.0,1.01726307]
[1738242956676,0.289963,105300.0,105290.0,0.3608]
[1738242956876,0.1,105300.0,105290.0,1.0841392]
[1738242957276,0.1,105300.0,105290.0,0.78990932]
[1738242957474,0.289961,105300.0,105290.0,0.73645033]
[1738242958077,0.39621088,105300.0,105290.0,0.01485033]
[1738242958277,0.39621088,105300.0,105290.0,0.01485059]
[1738242958479,0.18998,105290.0,105280.0,0.3609426]
[1738242958685,0.90998,105290.0,105280.0,0.37579399]
[1738242959085,0.18998,105290.0,105280.0,0.37579399]
[1738242959283,0.18998,105290.0,105280.0,0.48004393]
[1738242959487,0.18998,105290.0,105280.0,0.37579405]
[1738242959887,0.18998,105290.0,105280.0,0.37679405]
[1738242960288,0.18998,105290.0,105280.0,0.40055599]
[1738242960485,0.18998,105290.0,105280.0,0.37679405]
[1738242961583,0.18998,105290.0,105280.0,0.37879405]
[1738242963493,0.18998,105290.0,105280.0,0.37879431]
[1738242963789,0.18998,105290.0,105280.0,0.3639426]
[1738242963988,0.18998,105290.0,105280.0,0.56879231]
[1738242964189,0.18998,105290.0,105280.0,0.54889741]
[1738242964387,0.18998,105290.0,105280.0,0.1732457]
[1738242964388,0.29422988,105290.0,105280.0,0.1732457]
[1738242964885,0.65502988,105290.0,105280.0,0.1732457]
[1738242965075,0.29422988,105290.0,105280.0,0.1732457]
[1738242965275,1.057602,105300.0,105280.0,0.82827858]
[1738242965480,0.289962,105300.0,105290.0,0.65502988]
[1738242967189,0.289962,105300.0,105290.0,0.55078]
[1738242967386,0.289962,105300.0,105290.0,0.65502988]
[1738242968185,0.289962,105300.0,105290.0,0.65702988]
[1738242968889,0.289962,105300.0,105290.0,0.55078]
[1738242969691,0.1,105300.0,105290.0,1.60059335]
[1738242970593,0.1,105300.0,105290.0,1.60259335]
[1738242971387,0.1,105300.0,105290.0,1.60159335]
[1738242971594,0.1,105300.0,105290.0,1.60259335]
[1738242972692,0.1,105300.0,105290.0,1.64915335]
[1738242973085,0.1,105300.0,105290.0,1.42234922]
[1738242973289,0.189908,105330.0,105300.0,0.189961]
[1738242973490,0.189908,105330.0,105320.0,1.01577488]
[1738242973691,0.20044988,105350.0,105320.0,1.01577488]
[1738242973894,0.189895,105340.0,105330.0,0.3608]
[1738242974393,0.189895,105340.0,105320.0,0.4073426]
[1738242974394,0.189907,105330.0,105320.0,0.4073426]
[1738242974893,0.189907,105330.0,105320.0,0.3619426]
[1738242975288,0.189907,105330.0,105320.0,0.65511748]
[1738242975689,0.192907,105330.0,105320.0,0.5508676]
[1738242976298,0.189907,105330.0,105320.0,0.5508676]
[1738242977900,0.16994988,105350.0,105320.0,0.65511748]
[1738242978103,0.189896,105340.0,105330.0,0.65495688]
[1738242978295,0.0985,105350.0,105330.0,0.46504988]
[1738242978490,0.255575,105350.0,105340.0,0.550689]
[1738242978804,0.29410988,105360.0,105350.0,0.189871]
[1738242978993,0.35700988,105360.0,105350.0,0.550671]
[1738242979392,0.35700988,105360.0,105350.0,0.3608]
[1738242979589,0.189871,105350.0,105340.0,0.5508296]
[1738242980286,0.44238443,105370.0,105340.0,0.51266448]
[1738242980287,0.19126543,105370.0,105340.0,0.51266448]
[1738242980491,0.19126543,105370.0,105360.0,0.189853]
[1738242980896,0.29551531,105370.0,105360.0,0.189853]
[1738242981598,0.10567431,105370.0,105350.0,0.4233]
[1738242981798,0.189853,105360.0,105350.0,0.219963]
[1738242981992,0.32470288,105360.0,105350.0,0.189863]
[1738242982392,0.38750288,105360.0,105350.0,0.189863]
[1738242982598,0.189871,105350.0,105340.0,0.5848266]
[1738242983001,0.4241,105360.0,105340.0,0.3939426]
[1738242983308,0.256168,105360.0,105350.0,0.189871]
[1738242983697,0.256168,105360.0,105350.0,0.550671]
[1738242983895,0.253168,105360.0,105350.0,0.550671]
[1738242984194,0.253168,105360.0,105350.0,0.189871]
[1738242984897,0.253168,105360.0,105350.0,0.190871]
[1738242985602,0.256168,105360.0,105350.0,0.551671]
[1738242987301,0.0336,105360.0,105350.0,0.551671]
[1738242987502,0.003,105360.0,105350.0,0.70112088]
[1738242988606,0.003,105360.0,105350.0,0.70104088]
[1738242989711,0.00142443,105370.0,105360.0,0.189853]
[1738242989902,0.00142443,105370.0,105360.0,0.71820288]
[1738242990501,0.19125943,105370.0,105360.0,0.613953]
[1738242990804,0.19125943,105370.0,105360.0,0.4241]
[1738242991005,0.29550931,105370.0,105360.0,0.3608]
[1738242991305,0.19125943,105370.0,105360.0,0.550653]
[1738242991512,0.00142443,105370.0,105360.0,0.65490288]
[1738242991807,0.00142443,105370.0,105360.0,0.68700288]
[1738242992205,0.18982,105380.0,105370.0,0.189835]
[1738242992413,0.0634,105390.0,105370.0,0.52854988]
[1738242992414,0.189814,105390.0,105370.0,0.52854988]
[1738242992599,0.189814,105390.0,105380.0,0.65486688]
[1738242993311,0.1,105400.0,105380.0,0.65486688]
[1738242993511,0.28979,105400.0,105390.0,0.3608]
[1738242993908,0.20424988,105400.0,105380.0,0.5507596]
[1738242994110,0.189799,105390.0,105380.0,0.5507596]
[1738242994909,0.65484888,105390.0,105380.0,0.0001426]
[1738242997317,0.75909876,105390.0,105380.0,0.0001426]
[1738242997822,0.65484888,105390.0,105380.0,0.0001426]
[1738242998013,0.65784888,105390.0,105380.0,0.0001426]
[1738242998319,0.29704888,105390.0,105380.0,0.0001426]
[1738242998620,0.192799,105390.0,105380.0,0.0001426]
[1738242999321,0.192799,105390.0,105380.0,0.0011426]
[1738243000511,0.65784888,105390.0,105380.0,0.0011426]
[1738243000818,0.047455,105380.0,105350.0,0.550663]
[1738243001019,0.189853,105360.0,105350.0,0.550663]
[1738243001813,0.15170488,105380.0,105350.0,0.550663]
[1738243002014,0.1899856,105370.0,105360.0,0.55064]
[1738243002212,0.1899856,105370.0,105360.0,0.65488988]
[1738243002818,0.0001426,105370.0,105360.0,0.65488988]
[1738243003218,0.1899776,105370.0,105360.0,0.65488988]
[1738243003420,0.0001426,105370.0,105360.0,0.65488988]
[1738243003725,0.0001426,105370.0,105360.0,0.65688988]
[1738243004017,0.0001426,105370.0,105360.0,0.65788988]
[1738243004622,0.0001426,105370.0,105360.0,0.76213976]
[1738243005318,0.0001426,105370.0,105360.0,0.65788988]
[1738243007524,0.0001426,105370.0,105360.0,0.70160988]
[1738243008316,0.0001426,105370.0,105360.0,0.71102702]
[1738243010319,0.0001426,105370.0,105360.0,0.8152769]
[1738243012226,0.0001426,105370.0,105360.0,0.8132769]
[1738243012425,0.0001426,105370.0,105360.0,0.8182769]
[1738243012625,0.0001426,105370.0,105360.0,0.8192769]
[1738243012922,0.0001426,105370.0,105360.0,0.71502702]
[1738243013226,0.0001426,105370.0,105360.0,0.84060314]
[1738243013420,0.0001426,105370.0,105360.0,0.88380314]
[1738243014127,0.0001426,105370.0,105360.0,0.88384314]
[1738243014827,0.189803,105390.0,105360.0,0.69400314]
[1738243015030,0.189803,105390.0,105380.0,0.3608]
[1738243015225,0.29405288,105390.0,105380.0,0.3608]
[1738243015821,0.189803,105390.0,105380.0,0.550617]
[1738243016021,0.20424988,105400.0,105380.0,1.01566688]
[1738243016226,0.20424988,105400.0,105380.0,0.550617]
[1738243016527,0.189799,105390.0,105380.0,0.550617]
[1738243019223,0.190799,105390.0,105380.0,0.550617]
[1738243019818,0.189799,105390.0,105380.0,0.550617]
[1738243021024,0.189799,105390.0,105380.0,0.3608]
[1738243021627,0.289788,105400.0,105380.0,0.65486688]
[1738243021924,0.289788,105400.0,105390.0,0.3608]
[1738243022827,0.39503788,105400.0,105390.0,0.3608]
[1738243023023,0.39503788,105400.0,105390.0,0.3618]
[1738243023530,0.39403788,105400.0,105390.0,0.001]
[1738243023740,0.39703788,105400.0,105390.0,0.001]
[1738243024234,0.39703788,105400.0,105390.0,0.3618]
[1738243024445,0.292788,105400.0,105390.0,0.3618]
[1738243024626,0.39703788,105400.0,105390.0,0.3618]
[1738243025929,0.75783788,105400.0,105390.0,0.001]
[1738243026639,1.10055788,105400.0,105390.0,0.001]
[1738243026830,0.189817,105380.0,105370.0,0.5507756]
[1738243027732,0.189817,105380.0,105370.0,0.1899756]
[1738243027937,0.189817,105380.0,105370.0,0.5507756]
[1738243028239,0.189817,105380.0,105370.0,0.5527756]
[1738243028629,0.29406688,105380.0,105370.0,0.3629426]
[1738243028841,0.29406688,105380.0,105370.0,0.0021426]
[1738243029038,0.189817,105380.0,105370.0,0.0031426]
[1738243029633,0.189817,105380.0,105370.0,0.0011426]
[1738243029944,1.37486688,105380.0,105370.0,0.0001426]
[1738243030130,1.41726688,105380.0,105370.0,0.0001426]
[1738243031735,1.01406688,105380.0,105370.0,0.0001426]
[1738243032038,0.189817,105380.0,105370.0,0.3609426]
[1738243032244,0.189817,105380.0,105370.0,0.65502748]
[1738243032750,0.189808,105390.0,105380.0,0.189808]
[1738243033038,0.189808,105390.0,105380.0,0.550608]
[1738243034233,0.29405788,105390.0,105380.0,0.550608]
[1738243034438,0.34149888,105390.0,105380.0,0.3608]
[1738243034639,0.189817,105380.0,105370.0,0.5517676]
[1738243034840,0.29406688,105380.0,105370.0,0.56108666]
[1738243035245,0.29406688,105380.0,105370.0,0.5517676]
[1738243035448,0.189817,105380.0,105370.0,0.5507676]
[1738243038143,0.189817,105380.0,105370.0,0.5527676]
[1738243038742,0.29313588,105400.0,105370.0,0.46519248]
[1738243038937,0.39403088,105400.0,105390.0,0.3608]
[1738243039241,0.289781,105400.0,105390.0,0.550599]
[1738243039543,0.39403088,105400.0,105390.0,0.550599]
[1738243039951,0.39503088,105400.0,105390.0,0.550599]
[1738243041552,0.39403088,105400.0,105390.0,0.550599]
[1738243041746,0.39403088,105400.0,105390.0,0.3608]
[1738243041747,0.39703088,105400.0,105390.0,0.3608]
[1738243041945,0.292781,105400.0,105390.0,0.3618]
[1738243042145,0.292781,105400.0,105390.0,0.551599]
[1738243042653,0.292781,105400.0,105390.0,0.65584888]
[1738243043244,0.103,105400.0,105390.0,0.65584888]